[Event "Titled Tuesday Blitz April 25 Early 2023"]
[White "Molina, Roberto Junio Brito"]
[Black "Martic, Ivan"]
[WhiteFideId "2109450"]
[BlackFideId "929301"]
[WhiteElo "2376"]
[BlackElo "2360"]
[Result "1-0"]
[Round "08"]
[TimeControl "180+2"]
[Date "2023.04.25"]
[WhiteClock "0:00:16"]
[BlackClock "0:00:45"]

1. d4 {[%clk 0:03:00]}  Nf6 {[%clk 0:02:59]} 2. c4 {[%clk 0:03:00]}  g6 {[%clk 0:02:59]} 3. Nc3 {[%clk 0:02:59]}  Bg7 {[%clk 0:02:58]} 4. e4 {[%clk 0:03:00]}  d6 {[%clk 0:02:58]} 5. Be2 {[%clk 0:02:58]}  O-O {[%clk 0:02:58]} 6. Be3 {[%clk 0:02:58]}  e5 {[%clk 0:02:57]} 7. d5 {[%clk 0:02:58]}  Na6 {[%clk 0:02:55]} 8. g4 {[%clk 0:02:57]}  Nc5 {[%clk 0:02:53]} 9. f3 {[%clk 0:02:57]}  h5 {[%clk 0:02:53]} 10. g5 {[%clk 0:02:57]}  Nh7 {[%clk 0:02:53]} 11. h4 {[%clk 0:02:57]}  f6 {[%clk 0:02:52]} 12. Qd2 {[%clk 0:02:49]}  fxg5 {[%clk 0:02:50]} 13. hxg5 {[%clk 0:02:49]}  a5 {[%clk 0:02:35]} 14. O-O-O {[%clk 0:02:48]}  Rf4 {[%clk 0:02:35]} 15. Bxf4 {[%clk 0:02:40]}  exf4 {[%clk 0:02:36]} 16. Qxf4 {[%clk 0:02:41]}  Nxg5 {[%clk 0:02:26]} 17. Qe3 {[%clk 0:02:33]}  Qe7 {[%clk 0:02:20]} 18. Bd3 {[%clk 0:02:15]}  a4 {[%clk 0:02:15]} 19. Nge2 {[%clk 0:02:12]}  a3 {[%clk 0:02:12]} 20. b3 {[%clk 0:02:09]}  Bd7 {[%clk 0:02:04]} 21. Bc2 {[%clk 0:02:06]}  Re8 {[%clk 0:01:48]} 22. Rdg1 {[%clk 0:01:58]}  Bh6 {[%clk 0:01:40]} 23. f4 {[%clk 0:01:58]}  Ngxe4 {[%clk 0:01:37]} 24. Rxg6+ {[%clk 0:01:55]}  Kh7 {[%clk 0:01:36]} 25. Rxh6+ {[%clk 0:01:31]}  Kxh6 {[%clk 0:01:35]} 26. Nxe4 {[%clk 0:01:30]}  Nxe4 {[%clk 0:01:35]} 27. Bxe4 {[%clk 0:01:21]}  Qxe4 {[%clk 0:01:33]} 28. Rxh5+ {[%clk 0:01:20]}  Kg7 {[%clk 0:01:17]} 29. Qxe4 {[%clk 0:00:38]}  Rxe4 {[%clk 0:01:16]} 30. Rg5+ {[%clk 0:00:32]}  Kf7 {[%clk 0:01:13]} 31. Kd2 {[%clk 0:00:32]}  c6 {[%clk 0:01:01]} 32. dxc6 {[%clk 0:00:31]}  Bxc6 {[%clk 0:01:01]} 33. Ra5 {[%clk 0:00:30]}  Re8 {[%clk 0:00:56]} 34. Rxa3 {[%clk 0:00:29]}  Rh8 {[%clk 0:00:56]} 35. Nd4 {[%clk 0:00:28]}  Rh2+ {[%clk 0:00:55]} 36. Kc3 {[%clk 0:00:28]}  Be4 {[%clk 0:00:52]} 37. Ra7 {[%clk 0:00:26]}  Kf6 {[%clk 0:00:52]} 38. Nb5 {[%clk 0:00:22]}  Ke6 {[%clk 0:00:47]} 39. Ra8 {[%clk 0:00:19]}  Rf2 {[%clk 0:00:45]} 40. Re8+ {[%clk 0:00:16]} 1-0


[Site "https://www.chess.com"]

[Event "Titled Tuesday Blitz April 25 Early 2023"]
[White "Ashraf, Artin"]
[Black "Safin, Robert"]
[WhiteFideId "22514805"]
[BlackFideId "34189120"]
[WhiteElo "2188"]
[BlackElo "2245"]
[Result "0-1"]
[Round "08"]
[TimeControl "180+2"]
[Date "2023.04.25"]
[WhiteClock "0:01:33"]
[BlackClock "0:01:05"]

1. Nf3 {[%clk 0:02:58]}  b6 {[%clk 0:02:59]} 2. e4 {[%clk 0:02:57]}  Bb7 {[%clk 0:02:59]} 3. Nc3 {[%clk 0:02:54]}  e6 {[%clk 0:02:59]} 4. d4 {[%clk 0:02:53]}  Bb4 {[%clk 0:02:59]} 5. Bd3 {[%clk 0:02:52]}  Nf6 {[%clk 0:02:59]} 6. Qe2 {[%clk 0:02:46]}  d5 {[%clk 0:02:58]} 7. e5 {[%clk 0:02:45]}  Ne4 {[%clk 0:02:57]} 8. Bd2 {[%clk 0:02:37]}  Bxc3 {[%clk 0:02:56]} 9. bxc3 {[%clk 0:02:34]}  h6 {[%clk 0:02:56]} 10. O-O {[%clk 0:02:31]}  Nd7 {[%clk 0:02:47]} 11. Qe1 {[%clk 0:02:21]}  c5 {[%clk 0:02:38]} 12. a4 {[%clk 0:02:19]}  Qc7 {[%clk 0:02:26]} 13. Bc1 {[%clk 0:02:09]}  O-O {[%clk 0:02:19]} 14. Nh4 {[%clk 0:02:01]}  cxd4 {[%clk 0:01:34]} 15. cxd4 {[%clk 0:01:59]}  Qc3 {[%clk 0:01:23]} 16. Ra3 {[%clk 0:01:44]}  Qxd4 {[%clk 0:01:09]} 17. Nf3 {[%clk 0:01:41]}  Qc5 {[%clk 0:01:06]} 18. Be3 {[%clk 0:01:33]}  Qxa3 {[%clk 0:01:05]} 0-1


[Site "https://www.chess.com"]

[Event "Titled Tuesday Blitz April 25 Early 2023"]
[White "Leenhouts, Koen"]
[Black "Wagner, Dennis"]
[WhiteFideId "1008439"]
[BlackFideId "24650684"]
[WhiteElo "2409"]
[BlackElo "2470"]
[Result "1/2-1/2"]
[Round "08"]
[TimeControl "180+2"]
[Date "2023.04.25"]
[WhiteClock "0:00:08"]
[BlackClock "0:00:05"]

1. d4 {[%clk 0:03:00]}  Nf6 {[%clk 0:02:59]} 2. c4 {[%clk 0:03:01]}  e6 {[%clk 0:03:00]} 3. Nc3 {[%clk 0:03:01]}  Bb4 {[%clk 0:03:00]} 4. Qc2 {[%clk 0:03:02]}  O-O {[%clk 0:02:46]} 5. Nf3 {[%clk 0:03:01]}  b6 {[%clk 0:02:42]} 6. e4 {[%clk 0:02:59]}  Bb7 {[%clk 0:02:37]} 7. e5 {[%clk 0:02:58]}  Ne4 {[%clk 0:02:30]} 8. Bd3 {[%clk 0:02:58]}  f5 {[%clk 0:02:31]} 9. exf6 {[%clk 0:02:53]}  Nxf6 {[%clk 0:02:31]} 10. Bg5 {[%clk 0:02:47]}  Bxf3 {[%clk 0:02:30]} 11. Bxh7+ {[%clk 0:02:34]}  Kh8 {[%clk 0:02:28]} 12. gxf3 {[%clk 0:02:34]}  Nc6 {[%clk 0:02:27]} 13. O-O-O {[%clk 0:02:31]}  Bxc3 {[%clk 0:01:58]} 14. bxc3 {[%clk 0:02:32]}  Qe7 {[%clk 0:01:58]} 15. Bg6 {[%clk 0:02:20]}  Na5 {[%clk 0:01:49]} 16. Bd3 {[%clk 0:01:49]}  Qa3+ {[%clk 0:01:47]} 17. Kd2 {[%clk 0:01:45]}  Nh5 {[%clk 0:01:42]} 18. Ke2 {[%clk 0:01:26]}  Nf4+ {[%clk 0:01:38]} 19. Bxf4 {[%clk 0:01:26]}  Rxf4 {[%clk 0:01:39]} 20. Rdg1 {[%clk 0:01:22]}  Raf8 {[%clk 0:01:37]} 21. Rg3 {[%clk 0:01:22]}  R8f7 {[%clk 0:01:11]} 22. Rhg1 {[%clk 0:01:01]}  Rh4 {[%clk 0:00:56]} 23. R1g2 {[%clk 0:00:46]}  Nc6 {[%clk 0:00:49]} 24. Qd2 {[%clk 0:00:42]}  Kg8 {[%clk 0:00:27]} 25. Rxg7+ {[%clk 0:00:41]}  Rxg7 {[%clk 0:00:25]} 26. Rxg7+ {[%clk 0:00:42]}  Kxg7 {[%clk 0:00:26]} 27. Qg5+ {[%clk 0:00:41]}  Kf8 {[%clk 0:00:20]} 28. Qf6+ {[%clk 0:00:38]}  Kg8 {[%clk 0:00:19]} 29. Qg5+ {[%clk 0:00:33]}  Kf8 {[%clk 0:00:19]} 30. Qf6+ {[%clk 0:00:34]}  Kg8 {[%clk 0:00:19]} 31. Qxh4 {[%clk 0:00:35]}  Qxa2+ {[%clk 0:00:09]} 32. Kf1 {[%clk 0:00:34]}  Qd2 {[%clk 0:00:04]} 33. Qh7+ {[%clk 0:00:30]}  Kf8 {[%clk 0:00:05]} 34. d5 {[%clk 0:00:27]}  exd5 {[%clk 0:00:03]} 35. cxd5 {[%clk 0:00:28]}  Ne5 {[%clk 0:00:03]} 36. Qh8+ {[%clk 0:00:26]}  Kf7 {[%clk 0:00:03]} 37. Qxe5 {[%clk 0:00:24]}  Qxd3+ {[%clk 0:00:03]} 38. Kg2 {[%clk 0:00:24]}  Qg6+ {[%clk 0:00:04]} 39. Kf1 {[%clk 0:00:20]}  Qd3+ {[%clk 0:00:03]} 40. Kg2 {[%clk 0:00:19]}  d6 {[%clk 0:00:03]} 41. Qe6+ {[%clk 0:00:18]}  Kg7 {[%clk 0:00:04]} 42. Qe7+ {[%clk 0:00:18]}  Kh6 {[%clk 0:00:04]} 43. Qxc7 {[%clk 0:00:11]}  Qxd5 {[%clk 0:00:04]} 44. Qxa7 {[%clk 0:00:09]}  Qg5+ {[%clk 0:00:04]} 45. Kf1 {[%clk 0:00:09]}  Qc1+ {[%clk 0:00:04]} 46. Kg2 {[%clk 0:00:09]}  Qg5+ {[%clk 0:00:04]} 47. Kf1 {[%clk 0:00:09]}  Qc1+ {[%clk 0:00:04]} 48. Kg2 {[%clk 0:00:08]}  Qg5+ {[%clk 0:00:05]} 1/2-1/2


[Site "https://www.chess.com"]

[Event "Titled Tuesday Blitz April 25 Early 2023"]
[White "Herman, Daniel"]
[Black "Girya, Olga"]
[WhiteFideId "30935008"]
[BlackFideId "4195752"]
[WhiteElo "1897"]
[BlackElo "2263"]
[Result "0-1"]
[Round "08"]
[TimeControl "180+2"]
[Date "2023.04.25"]
[WhiteClock "0:00:14"]
[BlackClock "0:00:12"]

1. Nf3 {[%clk 0:03:00]}  d5 {[%clk 0:02:59]} 2. c4 {[%clk 0:03:00]}  e6 {[%clk 0:02:59]} 3. d4 {[%clk 0:02:59]}  Nf6 {[%clk 0:02:59]} 4. Nc3 {[%clk 0:02:59]}  Be7 {[%clk 0:02:59]} 5. Bf4 {[%clk 0:02:58]}  dxc4 {[%clk 0:02:55]} 6. e3 {[%clk 0:02:56]}  a6 {[%clk 0:02:54]} 7. Bxc4 {[%clk 0:02:55]}  b5 {[%clk 0:02:54]} 8. Bb3 {[%clk 0:02:54]}  Bb7 {[%clk 0:02:51]} 9. O-O {[%clk 0:02:51]}  O-O {[%clk 0:02:49]} 10. Rc1 {[%clk 0:02:50]}  Nbd7 {[%clk 0:02:47]} 11. Qe2 {[%clk 0:02:43]}  c5 {[%clk 0:02:46]} 12. dxc5 {[%clk 0:02:42]}  Nxc5 {[%clk 0:02:46]} 13. Rfd1 {[%clk 0:02:36]}  Qa5 {[%clk 0:02:30]} 14. Bd6 {[%clk 0:02:23]}  Bxd6 {[%clk 0:02:26]} 15. Rxd6 {[%clk 0:02:24]}  b4 {[%clk 0:02:18]} 16. Nb1 {[%clk 0:02:11]}  Nxb3 {[%clk 0:02:11]} 17. axb3 {[%clk 0:02:12]}  Bd5 {[%clk 0:02:09]} 18. Nbd2 {[%clk 0:02:04]}  Rac8 {[%clk 0:00:39]} 19. Nc4 {[%clk 0:01:52]}  Qb5 {[%clk 0:00:16]} 20. Nfe5 {[%clk 0:01:36]}  Ne4 {[%clk 0:00:13]} 21. Rd7 {[%clk 0:01:12]}  Nc5 {[%clk 0:00:13]} 22. Ra7 {[%clk 0:00:27]}  Nxb3 {[%clk 0:00:13]} 23. Rc2 {[%clk 0:00:20]}  Na5 {[%clk 0:00:12]} 24. h4 {[%clk 0:00:14]}  Nxc4 {[%clk 0:00:12]} 0-1


[Site "https://www.chess.com"]

[Event "Titled Tuesday Blitz April 25 Early 2023"]
[White "Rodchenkov, Sergey D."]
[Black "Manukyan, Sargis A."]
[WhiteFideId "4168712"]
[BlackFideId "13303970"]
[WhiteElo "2277"]
[BlackElo "2187"]
[Result "0-1"]
[Round "08"]
[TimeControl "180+2"]
[Date "2023.04.25"]
[WhiteClock "0:00:05"]
[BlackClock "0:01:32"]

1. e4 {[%clk 0:02:51]}  c5 {[%clk 0:02:59]} 2. Nf3 {[%clk 0:02:51]}  d6 {[%clk 0:02:59]} 3. d4 {[%clk 0:02:52]}  cxd4 {[%clk 0:03:00]} 4. Nxd4 {[%clk 0:02:52]}  Nf6 {[%clk 0:03:01]} 5. Nc3 {[%clk 0:02:53]}  g6 {[%clk 0:03:01]} 6. Be3 {[%clk 0:02:52]}  Bg7 {[%clk 0:03:02]} 7. f3 {[%clk 0:02:52]}  O-O {[%clk 0:03:02]} 8. Qd2 {[%clk 0:02:53]}  Nc6 {[%clk 0:03:03]} 9. O-O-O {[%clk 0:02:53]}  d5 {[%clk 0:03:03]} 10. exd5 {[%clk 0:02:53]}  Nxd5 {[%clk 0:03:04]} 11. Nxc6 {[%clk 0:02:54]}  bxc6 {[%clk 0:03:04]} 12. Bd4 {[%clk 0:02:54]}  e5 {[%clk 0:03:04]} 13. Bc5 {[%clk 0:02:55]}  Be6 {[%clk 0:03:04]} 14. Ne4 {[%clk 0:02:55]}  Re8 {[%clk 0:03:03]} 15. h4 {[%clk 0:02:56]}  h6 {[%clk 0:03:03]} 16. Bc4 {[%clk 0:02:49]}  Qc7 {[%clk 0:03:03]} 17. Qf2 {[%clk 0:02:44]}  Red8 {[%clk 0:03:03]} 18. h5 {[%clk 0:02:44]}  g5 {[%clk 0:03:03]} 19. g4 {[%clk 0:02:42]}  Nf4 {[%clk 0:03:02]} 20. Bxe6 {[%clk 0:02:19]}  Nxe6 {[%clk 0:03:03]} 21. Be3 {[%clk 0:02:19]}  Rd5 {[%clk 0:02:57]} 22. c4 {[%clk 0:01:51]}  Rd4 {[%clk 0:02:54]} 23. Bxd4 {[%clk 0:01:48]}  exd4 {[%clk 0:02:54]} 24. Qh2 {[%clk 0:01:39]}  Nf4 {[%clk 0:02:50]} 25. Kb1 {[%clk 0:01:31]}  Rb8 {[%clk 0:02:49]} 26. Nc5 {[%clk 0:00:49]}  d3 {[%clk 0:02:09]} 27. Rd2 {[%clk 0:00:19]}  Qe5 {[%clk 0:01:58]} 28. Nxd3 {[%clk 0:00:14]}  Nxd3 {[%clk 0:01:58]} 29. Qxe5 {[%clk 0:00:14]}  Nxe5 {[%clk 0:01:59]} 30. b3 {[%clk 0:00:12]}  Nxc4 {[%clk 0:01:56]} 31. Re2 {[%clk 0:00:09]}  Ne5 {[%clk 0:01:52]} 32. Rc1 {[%clk 0:00:05]}  Nxf3 {[%clk 0:01:48]} 33. Rec2 {[%clk 0:00:02]}  Nd4 {[%clk 0:01:46]} 34. Rf2 {[%clk 0:00:02]}  a5 {[%clk 0:01:42]} 35. Rcf1 {[%clk 0:00:03]}  Rb7 {[%clk 0:01:41]} 36. Kc1 {[%clk 0:00:03]}  a4 {[%clk 0:01:40]} 37. bxa4 {[%clk 0:00:04]}  Ra7 {[%clk 0:01:40]} 38. a3 {[%clk 0:00:03]}  f6 {[%clk 0:01:40]} 39. Rb2 {[%clk 0:00:03]}  Rxa4 {[%clk 0:01:40]} 40. Rb8+ {[%clk 0:00:03]}  Kh7 {[%clk 0:01:36]} 41. Kb2 {[%clk 0:00:03]}  f5 {[%clk 0:01:35]} 42. Ka2 {[%clk 0:00:04]}  f4 {[%clk 0:01:35]} 43. Rb7 {[%clk 0:00:05]}  Nb5 {[%clk 0:01:31]} 44. Re1 {[%clk 0:00:03]}  Rxa3+ {[%clk 0:01:32]} 45. Kb1 {[%clk 0:00:03]}  Ra1+ {[%clk 0:01:32]} 46. Kc2 {[%clk 0:00:04]}  Rxe1 {[%clk 0:01:32]} 47. Rd7 {[%clk 0:00:05]} 0-1


[Site "https://www.chess.com"]

[Event "Titled Tuesday Blitz April 25 Early 2023"]
[White "Bryant, John Daniel"]
[Black "Reprintsev, Alexander"]
[WhiteFideId "2031280"]
[BlackFideId "14100541"]
[WhiteElo "2455"]
[BlackElo "2211"]
[Result "0-1"]
[Round "08"]
[TimeControl "180+2"]
[Date "2023.04.25"]
[WhiteClock "0:00:01"]
[BlackClock "0:01:21"]

1. e4 {[%clk 0:03:00]}  e5 {[%clk 0:02:57]} 2. Nf3 {[%clk 0:02:58]}  Nc6 {[%clk 0:02:56]} 3. d4 {[%clk 0:02:54]}  exd4 {[%clk 0:02:55]} 4. Nxd4 {[%clk 0:02:55]}  Nf6 {[%clk 0:02:53]} 5. Nxc6 {[%clk 0:02:54]}  bxc6 {[%clk 0:02:52]} 6. e5 {[%clk 0:02:55]}  Nd5 {[%clk 0:02:50]} 7. c4 {[%clk 0:02:52]}  Bb4+ {[%clk 0:02:46]} 8. Bd2 {[%clk 0:02:31]}  Bxd2+ {[%clk 0:02:45]} 9. Qxd2 {[%clk 0:02:06]}  Ne7 {[%clk 0:02:44]} 10. Bd3 {[%clk 0:01:47]}  d6 {[%clk 0:02:41]} 11. exd6 {[%clk 0:01:45]}  cxd6 {[%clk 0:02:41]} 12. Nc3 {[%clk 0:01:38]}  O-O {[%clk 0:02:41]} 13. O-O {[%clk 0:01:38]}  Be6 {[%clk 0:02:41]} 14. Rfe1 {[%clk 0:01:10]}  Re8 {[%clk 0:02:41]} 15. Re2 {[%clk 0:00:52]}  d5 {[%clk 0:02:37]} 16. c5 {[%clk 0:00:21]}  Rb8 {[%clk 0:02:35]} 17. a3 {[%clk 0:00:16]}  a5 {[%clk 0:02:32]} 18. Rae1 {[%clk 0:00:13]}  Qc7 {[%clk 0:02:15]} 19. h4 {[%clk 0:00:08]}  h6 {[%clk 0:02:13]} 20. Na4 {[%clk 0:00:07]}  Kf8 {[%clk 0:02:00]} 21. Bb1 {[%clk 0:00:05]}  Ng8 {[%clk 0:01:53]} 22. Nb6 {[%clk 0:00:05]}  Qe7 {[%clk 0:01:39]} 23. Qd4 {[%clk 0:00:03]}  Qf6 {[%clk 0:01:35]} 24. Qxf6 {[%clk 0:00:02]}  Nxf6 {[%clk 0:01:35]} 25. b4 {[%clk 0:00:02]}  axb4 {[%clk 0:01:35]} 26. axb4 {[%clk 0:00:03]}  Re7 {[%clk 0:01:31]} 27. Bc2 {[%clk 0:00:03]}  Ra7 {[%clk 0:01:31]} 28. Bb3 {[%clk 0:00:02]}  Ra3 {[%clk 0:01:30]} 29. Bc2 {[%clk 0:00:01]}  Rb7 {[%clk 0:01:27]} 30. f3 {[%clk 0:00:01]}  Rba7 {[%clk 0:01:27]} 31. Kf2 {[%clk 0:00:01]}  Rc3 {[%clk 0:01:27]} 32. Rd1 {[%clk 0:00:01]}  Ra2 {[%clk 0:01:25]} 33. Rdd2 {[%clk 0:00:01]}  Rb2 {[%clk 0:01:21]} 0-1


[Site "https://www.chess.com"]

[Event "Titled Tuesday Blitz April 25 Early 2023"]
[White "Garv Gaur"]
[Black "hakanazeri2"]
[WhiteFideId "45030839"]
[WhiteElo "2068"]
[BlackElo "2629"]
[Result "0-1"]
[Round "08"]
[TimeControl "180+2"]
[Date "2023.04.25"]
[WhiteClock "0:00:04"]
[BlackClock "0:00:09"]

1. Nf3 {[%clk 0:02:47]}  d5 {[%clk 0:02:58]} 2. e3 {[%clk 0:02:44]}  Nf6 {[%clk 0:02:57]} 3. b3 {[%clk 0:02:43]}  Bg4 {[%clk 0:02:56]} 4. Bb2 {[%clk 0:02:42]}  c6 {[%clk 0:02:56]} 5. Be2 {[%clk 0:02:39]}  Nbd7 {[%clk 0:02:55]} 6. d3 {[%clk 0:02:38]}  e6 {[%clk 0:02:54]} 7. Ne5 {[%clk 0:02:36]}  Nxe5 {[%clk 0:02:52]} 8. Bxe5 {[%clk 0:02:35]}  Bxe2 {[%clk 0:02:53]} 9. Qxe2 {[%clk 0:02:36]}  Bd6 {[%clk 0:02:53]} 10. Bxd6 {[%clk 0:02:30]}  Qxd6 {[%clk 0:02:52]} 11. Nd2 {[%clk 0:02:30]}  e5 {[%clk 0:02:52]} 12. e4 {[%clk 0:02:28]}  O-O {[%clk 0:02:50]} 13. O-O {[%clk 0:02:28]}  Rfe8 {[%clk 0:02:47]} 14. Rfe1 {[%clk 0:02:27]}  c5 {[%clk 0:02:46]} 15. exd5 {[%clk 0:02:25]}  Qxd5 {[%clk 0:02:47]} 16. Nc4 {[%clk 0:02:26]}  e4 {[%clk 0:02:42]} 17. dxe4 {[%clk 0:02:20]}  Rxe4 {[%clk 0:02:43]} 18. Qf3 {[%clk 0:02:18]}  Rxe1+ {[%clk 0:02:43]} 19. Rxe1 {[%clk 0:02:19]}  Qxf3 {[%clk 0:02:43]} 20. gxf3 {[%clk 0:02:19]}  Rd8 {[%clk 0:02:41]} 21. Re7 {[%clk 0:02:04]}  Rd7 {[%clk 0:02:40]} 22. Rxd7 {[%clk 0:02:04]}  Nxd7 {[%clk 0:02:41]} 23. Nd6 {[%clk 0:02:05]}  b6 {[%clk 0:02:40]} 24. Nc8 {[%clk 0:02:04]}  a6 {[%clk 0:02:40]} 25. Ne7+ {[%clk 0:01:59]}  Kf8 {[%clk 0:02:40]} 26. Nd5 {[%clk 0:02:00]}  f6 {[%clk 0:02:39]} 27. Kg2 {[%clk 0:01:57]}  Kf7 {[%clk 0:02:38]} 28. f4 {[%clk 0:01:58]}  g6 {[%clk 0:02:27]} 29. Kf3 {[%clk 0:01:57]}  Ke6 {[%clk 0:02:14]} 30. c4 {[%clk 0:01:57]}  Kd6 {[%clk 0:02:11]} 31. Ke4 {[%clk 0:01:54]}  f5+ {[%clk 0:02:10]} 32. Ke3 {[%clk 0:01:51]}  b5 {[%clk 0:02:10]} 33. f3 {[%clk 0:01:43]}  Nf8 {[%clk 0:01:46]} 34. Nf6 {[%clk 0:01:35]}  h6 {[%clk 0:01:31]} 35. Ne8+ {[%clk 0:01:30]}  Kc6 {[%clk 0:01:25]} 36. Nf6 {[%clk 0:01:28]}  Kd6 {[%clk 0:01:08]} 37. Ne8+ {[%clk 0:01:25]}  Kd7 {[%clk 0:01:06]} 38. Nf6+ {[%clk 0:01:24]}  Ke6 {[%clk 0:01:06]} 39. Nd5 {[%clk 0:01:23]}  Kd6 {[%clk 0:01:05]} 40. Nf6 {[%clk 0:01:23]}  Ne6 {[%clk 0:01:01]} 41. h4 {[%clk 0:01:18]}  h5 {[%clk 0:01:00]} 42. Nh7 {[%clk 0:01:03]}  Ke7 {[%clk 0:00:31]} 43. Ng5 {[%clk 0:01:02]}  Nd4 {[%clk 0:00:31]} 44. Nh3 {[%clk 0:01:02]}  Nc2+ {[%clk 0:00:29]} 45. Kd3 {[%clk 0:01:01]}  Nb4+ {[%clk 0:00:29]} 46. Kd2 {[%clk 0:00:55]}  Nxa2 {[%clk 0:00:29]} 47. cxb5 {[%clk 0:00:56]}  axb5 {[%clk 0:00:29]} 48. Nf2 {[%clk 0:00:57]}  Nb4 {[%clk 0:00:29]} 49. Ke2 {[%clk 0:00:37]}  Kd6 {[%clk 0:00:25]} 50. Kd2 {[%clk 0:00:32]}  Nd5 {[%clk 0:00:23]} 51. Nd3 {[%clk 0:00:30]}  c4 {[%clk 0:00:24]} 52. bxc4 {[%clk 0:00:30]}  bxc4 {[%clk 0:00:25]} 53. Ne5 {[%clk 0:00:31]}  Nxf4 {[%clk 0:00:26]} 54. Nxc4+ {[%clk 0:00:31]}  Ke6 {[%clk 0:00:26]} 55. Ne3 {[%clk 0:00:23]}  Ke5 {[%clk 0:00:25]} 56. Ke1 {[%clk 0:00:19]}  Nd5 {[%clk 0:00:18]} 57. Ng2 {[%clk 0:00:18]}  f4 {[%clk 0:00:16]} 58. Kf2 {[%clk 0:00:18]}  Ne7 {[%clk 0:00:14]} 59. Ne1 {[%clk 0:00:14]}  Kd4 {[%clk 0:00:10]} 60. Ng2 {[%clk 0:00:13]}  Nd5 {[%clk 0:00:10]} 61. Ne1 {[%clk 0:00:13]}  Ke5 {[%clk 0:00:07]} 62. Nd3+ {[%clk 0:00:11]}  Kf5 {[%clk 0:00:07]} 63. Nc5 {[%clk 0:00:11]}  Ne7 {[%clk 0:00:07]} 64. Ne4 {[%clk 0:00:11]}  Ng8 {[%clk 0:00:07]} 65. Nd6+ {[%clk 0:00:11]}  Ke5 {[%clk 0:00:07]} 66. Nf7+ {[%clk 0:00:10]}  Ke6 {[%clk 0:00:07]} 67. Ng5+ {[%clk 0:00:10]}  Kd5 {[%clk 0:00:07]} 68. Ne4 {[%clk 0:00:09]}  Nh6 {[%clk 0:00:07]} 69. Kg2 {[%clk 0:00:08]}  Nf5 {[%clk 0:00:07]} 70. Kh3 {[%clk 0:00:09]}  Kd4 {[%clk 0:00:07]} 71. Ng5 {[%clk 0:00:05]}  Ke3 {[%clk 0:00:07]} 72. Nh7 {[%clk 0:00:01]}  Kxf3 {[%clk 0:00:08]} 73. Nf8 {[%clk 0:00:02]}  Ne7 {[%clk 0:00:07]} 74. Ne6 {[%clk 0:00:03]}  Ke3 {[%clk 0:00:07]} 75. Ng5 {[%clk 0:00:03]}  f3 {[%clk 0:00:08]} 76. Kg3 {[%clk 0:00:03]}  f2 {[%clk 0:00:08]} 77. Kg2 {[%clk 0:00:03]}  Ke2 {[%clk 0:00:08]} 78. Nh3 {[%clk 0:00:03]}  f1=Q+ {[%clk 0:00:09]} 79. Kg3 {[%clk 0:00:04]} 0-1


[Site "https://www.chess.com"]

[Event "Titled Tuesday Blitz April 25 Early 2023"]
[White "Golichenko, Ilija"]
[Black "Arat, Ufuk Sezen"]
[WhiteFideId "14117223"]
[BlackFideId "6309089"]
[WhiteElo "2339"]
[BlackElo "2289"]
[Result "0-1"]
[Round "08"]
[TimeControl "180+2"]
[Date "2023.04.25"]
[WhiteClock "0:00:01"]
[BlackClock "0:00:08"]

1. d4 {[%clk 0:03:00]}  d5 {[%clk 0:02:59]} 2. Nc3 {[%clk 0:02:59]}  Nf6 {[%clk 0:02:58]} 3. Bf4 {[%clk 0:02:59]}  g6 {[%clk 0:02:58]} 4. e3 {[%clk 0:02:58]}  Bg7 {[%clk 0:02:59]} 5. h4 {[%clk 0:02:57]}  h5 {[%clk 0:02:58]} 6. Nf3 {[%clk 0:02:56]}  O-O {[%clk 0:02:57]} 7. Ne5 {[%clk 0:02:55]}  Nbd7 {[%clk 0:02:56]} 8. Be2 {[%clk 0:02:52]}  c6 {[%clk 0:02:53]} 9. O-O {[%clk 0:02:50]}  Nxe5 {[%clk 0:02:52]} 10. Bxe5 {[%clk 0:02:47]}  Ng4 {[%clk 0:02:52]} 11. Bxg7 {[%clk 0:02:47]}  Kxg7 {[%clk 0:02:53]} 12. Bxg4 {[%clk 0:02:45]}  Bxg4 {[%clk 0:02:52]} 13. f3 {[%clk 0:02:44]}  Bd7 {[%clk 0:02:51]} 14. e4 {[%clk 0:02:44]}  dxe4 {[%clk 0:02:45]} 15. fxe4 {[%clk 0:02:41]}  Bg4 {[%clk 0:02:46]} 16. Qd2 {[%clk 0:02:40]}  e5 {[%clk 0:02:46]} 17. d5 {[%clk 0:02:06]}  Qxh4 {[%clk 0:02:44]} 18. dxc6 {[%clk 0:02:06]}  bxc6 {[%clk 0:02:40]} 19. Qd6 {[%clk 0:02:06]}  Qg3 {[%clk 0:02:32]} 20. Qxc6 {[%clk 0:01:49]}  Qe3+ {[%clk 0:02:09]} 21. Rf2 {[%clk 0:01:47]}  Rad8 {[%clk 0:01:40]} 22. Rf1 {[%clk 0:01:24]}  Rd2 {[%clk 0:01:16]} 23. Nd5 {[%clk 0:01:11]}  Qg5 {[%clk 0:00:53]} 24. Rxd2 {[%clk 0:01:02]}  Qxd2 {[%clk 0:00:53]} 25. Qf6+ {[%clk 0:01:00]}  Kh7 {[%clk 0:00:40]} 26. Qxe5 {[%clk 0:00:53]}  Be6 {[%clk 0:00:16]} 27. Nf6+ {[%clk 0:00:45]}  Kh6 {[%clk 0:00:17]} 28. b3 {[%clk 0:00:33]}  h4 {[%clk 0:00:15]} 29. Qf4+ {[%clk 0:00:30]}  Qxf4 {[%clk 0:00:14]} 30. Rxf4 {[%clk 0:00:31]}  g5 {[%clk 0:00:15]} 31. Rf2 {[%clk 0:00:30]}  Rd8 {[%clk 0:00:14]} 32. c4 {[%clk 0:00:25]}  g4 {[%clk 0:00:13]} 33. Nd5 {[%clk 0:00:21]}  Kg5 {[%clk 0:00:13]} 34. Rd2 {[%clk 0:00:18]}  f5 {[%clk 0:00:12]} 35. exf5 {[%clk 0:00:17]}  Bxf5 {[%clk 0:00:13]} 36. Kf2 {[%clk 0:00:17]}  Be4 {[%clk 0:00:11]} 37. Ke3 {[%clk 0:00:17]}  Re8 {[%clk 0:00:12]} 38. Kd4 {[%clk 0:00:16]}  h3 {[%clk 0:00:12]} 39. gxh3 {[%clk 0:00:16]}  g3 {[%clk 0:00:10]} 40. Ne3 {[%clk 0:00:13]}  Kf4 {[%clk 0:00:08]} 41. Ng2+ {[%clk 0:00:09]}  Kf3 {[%clk 0:00:08]} 42. Nh4+ {[%clk 0:00:07]}  Kf4 {[%clk 0:00:08]} 43. c5 {[%clk 0:00:06]}  Rd8+ {[%clk 0:00:08]} 44. Kc3 {[%clk 0:00:06]}  Rh8 {[%clk 0:00:08]} 45. Ng2+ {[%clk 0:00:04]}  Kf3 {[%clk 0:00:08]} 46. Ne1+ {[%clk 0:00:03]}  Ke3 {[%clk 0:00:08]} 47. Ng2+ {[%clk 0:00:03]}  Bxg2 {[%clk 0:00:07]} 48. Rxg2 {[%clk 0:00:01]}  Kf3 {[%clk 0:00:08]} 49. Rg1 {[%clk 0:00:01]}  Kf2 {[%clk 0:00:08]} 0-1


[Site "https://www.chess.com"]